[Event "26th OIBM 2023"]
[Site "Gmund am Tegernsee"]
[Date "2023.10.30"]
[Round "3.15"]
[White "Goldbeck, Lars"]
[Black "Meissner, Felix"]
[Result "1-0"]
[ECO "B06"]
[WhiteElo "2272"]
[BlackElo "2382"]
[Annotator "RC"]
[PlyCount "85"]
[EventDate "2023.10.04"]
[EventType "swiss"]
[EventCountry "GER"]
[SourceTitle "playchess.com"]
[Source "ChessBase"]
[SourceQuality "1"]
[TimeControl "40/5400+30:1800+30"]

1. d4 {[%emt 0:00:01]} g6 {[%emt 0:13:06]} 2. Nf3 {[%emt 0:00:48]} Bg7 {[%emt 0:00:12]} 3. e4 {[%emt 0:00:25]} d6 {[%emt 0:00:32]} 4. Nbd2 {[%emt 0:00:36]} Nd7 {[%emt 0:02:10]} 5. Bd3 {[%emt 0:00:41]} e6 {[%emt 0:03:00]} 6. a4 {[%emt 0:03:30]} a5 {[%emt 0:05:30]} 7. c3 {[%emt 0:02:48]} Ne7 {[%emt 0:00:29]} 8. O-O {[%emt 0:00:51]} O-O {[%emt 0:00:43]} 9. Re1 {[%emt 0:00:47]} e5 {[%emt 0:01:37]} 10. Bb5 {[%emt 0:09:00]} h6 {[%emt 0:02:47]} 11. h3 {[%emt 0:03:02]} Kh7 {[%emt 0:01:36]} 12. Nf1 {[%emt 0:04:48]} c6 {[%emt 0:02:13]} 13. Bd3 {[%emt 0:00:11]} exd4 {[%emt 0:03:52]} 14. cxd4 {[%emt 0:04:55]} Nf6 {[%emt 0:09:39]} 15. Ng3 {[%emt 0:03:17]} Be6 {[%emt 0:03:04]} 16. Be3 {[%emt 0:03:02]} Qd7 {[%emt 0:03:44]} 17. Qc2 {[%emt 0:17:24]} Kh8 {[%emt 0:01:58]} 18. Rad1 {[%emt 0:03:13]} Nfg8 {[%emt 0:01:18]} 19. e5 {[%emt 0:08:40]} f5 {[%emt 0:06:41]} 20. exf6 {[%emt 0:03:29]} Rxf6 {[%emt 0:00:35]} 21. Nd2 {[%emt 0:02:19]} d5 {[%emt 0:03:26]} 22. Nb3 {[%emt 0:04:09]} b6 {[%emt 0:00:14]} 23. Rc1 {[%emt 0:00:22]} Raf8 {[%emt 0:02:59]} 24. Nd2 {[%emt 0:01:19]} Qd6 {[%emt 0:01:54]} 25. Ndf1 {[%emt 0:02:31]} Bd7 {[%emt 0:01:42]} 26. Nh2 {[%emt 0:00:40]} h5 {[%emt 0:03:45]} 27. Qd2 {[%emt 0:02:29]} R6f7 {[%emt 0:01:36]} 28. Be2 {[%emt 0:04:23]} h4 {[%emt 0:06:07]} 29. Ngf1 Nf5 {[%emt 0:18:31]} 30. Bf4 {[%emt 0:15:50]} Qb4 {[%emt 0:00:00]} 31. Be5 {[%emt 0:00:00]} Qxd2 {[%emt 0:00:00]} 32. Nxd2 Nxd4 {[%emt 0:00:00]} 33. Nhf3 {[%emt 0:00:00]} Nxf3+ 34. Nxf3 Ne7 {[%emt 0:00:00]} 35. Bxg7+ {[%emt 0:00:00]} Kxg7 {[%emt 0:03:00]} 36. Ne5 {[%emt 0:03:00]} Be8 {[%emt 0:00:00]} 37. Nxf7 {[%emt 0:00:00]} Rxf7 {[%emt 0:00:00]} 38. Bg4 {[%emt 0:00:00]} c5 {[%emt 0:00:00]} 39. b3 {[%emt 0:00:00]} Bc6 {[%emt 0:00:00]} 40. Re6 {[%emt 0:00:00]} Kf8 {[%emt 0:01:18]} 41. Rd6 {[%emt 0:05:48]} Rf4 {[%emt 0:05:16]} 42. Re1 {[%emt 0:05:23]} Rb4 {[%emt 0:01:40]} 43. Rf6+ {[%emt 0:00:47]} 1-0

[Event "26th OIBM 2023"]
[Site "Gmund am Tegernsee"]
[Date "2023.10.30"]
[Round "3.16"]
[White "Morawietz, Dieter"]
[Black "Schmidt, Gerhard"]
[Result "1-0"]
[ECO "E97"]
[WhiteElo "2378"]
[BlackElo "2112"]
[Annotator "RC"]
[PlyCount "80"]
[EventDate "2023.10.04"]
[EventType "swiss"]
[EventCountry "GER"]
[SourceTitle "playchess.com"]
[Source "ChessBase"]
[SourceQuality "1"]
[TimeControl "40/5400+30:1800+30"]

1. d4 {[%emt 0:00:08]} Nf6 {[%emt 0:00:09]} 2. c4 {[%emt 0:00:47]} g6 {[%emt 0:00:10]} 3. Nc3 {[%emt 0:00:10]} Bg7 {[%emt 0:00:14]} 4. e4 {[%emt 0:00:13]} d6 {[%emt 0:00:17]} 5. Nf3 {[%emt 0:00:18]} O-O {[%emt 0:00:21]} 6. Be2 {[%emt 0:00:10]} e5 {[%emt 0:00:20]} 7. O-O {[%emt 0:00:16]} Nc6 {[%emt 0:00:21]} 8. d5 {[%emt 0:00:14]} Ne7 {[%emt 0:00:21]} 9. b4 {[%emt 0:00:13]} a5 {[%emt 0:00:29]} 10. bxa5 {[%emt 0:00:34]} c5 {[%emt 0:00:58]} 11. a4 {[%emt 0:03:34]} Rxa5 {[%emt 0:00:53]} 12. Bd2 {[%emt 0:06:07]} Ra6 {[%emt 0:03:05]} 13. Ra3 {[%emt 0:01:35]} Ne8 {[%emt 0:02:04]} 14. Kh1 {[%emt 0:18:15]} Kh8 {[%emt 0:11:15]} 15. Ne1 {[%emt 0:09:06]} f5 {[%emt 0:08:38]} 16. Nd3 {[%emt 0:08:09]} Nf6 {[%emt 0:06:05]} 17. exf5 {[%emt 0:05:14]} Nxf5 {[%emt 0:10:28]} 18. f3 {[%emt 0:04:48]} Nd4 {[%emt 0:11:40]} 19. Nf2 {[%emt 0:00:51]} Nh5 {[%emt 0:01:30]} 20. Bd3 {[%emt 0:13:31]} Nf4 {[%emt 0:06:01]} 21. Bb1 {[%emt 0:00:50]} Qd7 {[%emt 0:11:49]} 22. Nfe4 {[%emt 0:00:47]} Nxg2 {[%emt 0:13:03]} 23. Kxg2 {[%emt 0:00:05]} Qh3+ {[%emt 0:00:14]} 24. Kh1 {[%emt 0:00:14]} Nxf3 {[%emt 0:04:35]} 25. Qe2 {[%emt 0:10:47]} Bg4 {[%emt 0:01:33]} 26. Qg2 {[%emt 0:03:14]} Raa8 {[%emt 0:03:42]} 27. Nb5 {[%emt 0:05:23]} Qh4 {[%emt 0:02:02]} 28. Raxf3 {[%emt 0:02:03]} Bxf3 {[%emt 0:01:21]} 29. Rxf3 {[%emt 0:00:05]} Rxf3 {[%emt 0:00:22]} 30. Qxf3 {[%emt 0:00:07]} Rf8 {[%emt 0:00:17]} 31. Qg2 {[%emt 0:01:39]} Bh6 {[%emt 0:00:34]} 32. Bd3 {[%emt 0:03:48]} Bxd2 {[%emt 0:00:09]} 33. Qxd2 {[%emt 0:00:07]} Qh3 {[%emt 0:00:16]} 34. Qe2 {[%emt 0:01:21]} Qh6 {[%emt 0:00:11]} 35. Nbxd6 {[%emt 0:00:39]} Qc1+ {[%emt 0:00:32]} 36. Kg2 {[%emt 0:00:05]} Rf4 {[%emt 0:00:29]} 37. Ng3 {[%emt 0:00:44]} e4 {[%emt 0:00:29]} 38. Ndxe4 {[%emt 0:00:13]} h5 {[%emt 0:00:15]} 39. Ng5 {[%emt 0:01:10]} h4 {[%emt 0:00:23]} 40. Qe5+ {[%emt 0:00:46]} Kg8 {[%emt 0:00:25]} 1-0

[Event "26th OIBM 2023"]
[Site "Gmund am Tegernsee"]
[Date "2023.10.30"]
[Round "3.17"]
[White "Deglmann, Ludwig"]
[Black "Hess, Max"]
[Result "1/2-1/2"]
[ECO "D36"]
[WhiteElo "2243"]
[BlackElo "2378"]
[Annotator "RC"]
[PlyCount "62"]
[EventDate "2023.10.04"]
[EventType "swiss"]
[EventCountry "GER"]
[SourceTitle "playchess.com"]
[Source "ChessBase"]
[SourceQuality "1"]
[TimeControl "40/5400+30:1800+30"]

1. c4 {[%emt 0:00:08]} e6 {[%emt 0:00:20]} 2. d4 {[%emt 0:00:56]} d5 {[%emt 0:00:13]} 3. Nc3 {[%emt 0:00:18]} Nf6 {[%emt 0:00:13]} 4. cxd5 {[%emt 0:00:22]} exd5 {[%emt 0:00:05]} 5. Bg5 {[%emt 0:00:23]} c6 {[%emt 0:01:04]} 6. Qc2 {[%emt 0:03:34]} h6 {[%emt 0:00:26]} 7. Bh4 {[%emt 0:00:54]} Be7 {[%emt 0:00:07]} 8. e3 {[%emt 0:01:54]} O-O {[%emt 0:00:07]} 9. Bd3 {[%emt 0:01:40]} Re8 {[%emt 0:00:22]} 10. Nge2 {[%emt 0:04:29]} Nbd7 {[%emt 0:00:07]} 11. Bg3 {[%emt 0:02:31]} Nf8 {[%emt 0:12:34]} 12. h3 {[%emt 0:03:15]} Ne6 {[%emt 0:01:27]} 13. O-O {[%emt 0:08:46]} Bd7 {[%emt 0:13:10]} 14. Rad1 {[%emt 0:11:46]} Rc8 {[%emt 0:05:39]} 15. Nf4 {[%emt 0:16:33]} Nxf4 {[%emt 0:06:55]} 16. Bxf4 {[%emt 0:00:20]} Be6 {[%emt 0:00:59]} 17. a3 {[%emt 0:14:09]} b5 {[%emt 0:16:41]} 18. f3 {[%emt 0:08:35]} a6 {[%emt 0:03:32]} 19. Bf5 {[%emt 0:08:25]} Qd7 {[%emt 0:04:10]} 20. Bxe6 {[%emt 0:00:44]} Qxe6 {[%emt 0:00:03]} 21. e4 {[%emt 0:00:07]} c5 {[%emt 0:01:41]} 22. exd5 {[%emt 0:01:30]} Nxd5 {[%emt 0:05:25]} 23. Rfe1 {[%emt 0:00:48]} Qc6 {[%emt 0:01:07]} 24. Nxd5 {[%emt 0:00:39]} Qxd5 {[%emt 0:00:05]} 25. Re5 {[%emt 0:00:07]} Qd7 {[%emt 0:04:08]} 26. dxc5 {[%emt 0:02:09]} Bxc5+ {[%emt 0:00:27]} 27. Kh1 {[%emt 0:00:50]} Rxe5 {[%emt 0:02:55]} 28. Bxe5 {[%emt 0:01:06]} Qe6 {[%emt 0:00:05]} 29. Bc3 {[%emt 0:02:47]} Qc4 {[%emt 0:04:40]} 30. Qf5 {[%emt 0:01:16]} Re8 {[%emt 0:06:01]} 31. Qd7 {[%emt 0:00:41]} Qe6 {[%emt 0:01:29]} 1/2-1/2

[Event "26th OIBM 2023"]
[Site "Gmund am Tegernsee"]
[Date "2023.10.30"]
[Round "3.18"]
[White "Kurmangaliyeva, Liya"]
[Black "Manish Anto Cristiano F"]
[Result "1-0"]
[ECO "D43"]
[WhiteElo "2236"]
[BlackElo "2368"]
[Annotator "RC"]
[PlyCount "31"]
[EventDate "2023.10.04"]
[EventType "swiss"]
[EventCountry "GER"]
[SourceTitle "playchess.com"]
[Source "ChessBase"]
[SourceQuality "1"]
[TimeControl "40/5400+30:1800+30"]

1. d4 {[%emt 0:00:08]} d5 {[%emt 0:00:07]} 2. c4 {[%emt 0:00:17]} c6 {[%emt 0:00:08]} 3. Nf3 {[%emt 0:00:31]} Nf6 {[%emt 0:00:10]} 4. Nc3 {[%emt 0:00:27]} e6 {[%emt 0:00:10]} 5. Bg5 {[%emt 0:00:52]} h6 {[%emt 0:00:28]} 6. Bxf6 {[%emt 0:00:55]} Qxf6 {[%emt 0:00:08]} 7. a3 {[%emt 0:00:06]} dxc4 {[%emt 0:02:14]} 8. e3 {[%emt 0:00:06]} b5 {[%emt 0:00:53]} 9. Ne5 {[%emt 0:00:48]} Bd6 {[%emt 0:03:05]} 10. Ne4 {[%emt 0:03:24]} Qe7 {[%emt 0:03:06]} 11. Qh5 {[%emt 0:01:26]} O-O {[%emt 0:01:48]} 12. g4 {[%emt 0:03:56]} Bxe5 {[%emt 0:14:51]} 13. dxe5 {[%emt 0:02:29]} Nd7 {[%emt 0:06:50]} 14. g5 {[%emt 0:18:08]} Nxe5 {[%emt 0:05:01]} 15. Rg1 {[%emt 0:02:20]} g6 {[%emt 0:22:35]} 16. Nf6+ {[%emt 0:00:44]} 1-0

[Event "26th OIBM 2023"]
[Site "Gmund am Tegernsee"]
[Date "2023.10.30"]
[Round "3.19"]
[White "Besou, Hussain"]
[Black "Hiemer, Bernd"]
[Result "1-0"]
[ECO "B07"]
[WhiteElo "2351"]
[BlackElo "1999"]
[Annotator "RC"]
[PlyCount "49"]
[EventDate "2023.10.04"]
[EventType "swiss"]
[EventCountry "GER"]
[SourceTitle "playchess.com"]
[Source "ChessBase"]
[SourceQuality "1"]
[TimeControl "40/5400+30:1800+30"]

1. e4 {[%emt 0:00:04]} d6 {[%emt 0:00:04]} 2. d4 {[%emt 0:00:05]} Nf6 {[%emt 0:00:12]} 3. Nc3 {[%emt 0:00:07]} g6 {[%emt 1:31:44]} 4. Be3 {[%emt 1:32:14]} Bg7 {[%emt 0:00:00]} 5. Qd2 {[%emt 0:00:00]} c6 {[%emt 0:00:00]} 6. Bh6 {[%emt 0:00:00]} O-O {[%emt 0:00:00]} 7. h4 {[%emt 0:00:00]} e5 {[%emt 0:00:00]} 8. Bxg7 {[%emt 0:00:00]} Kxg7 {[%emt 0:00:00]} 9. O-O-O {[%emt 0:00:00]} Qa5 {[%emt 0:00:00]} 10. h5 {[%emt 0:00:00]} b5 {[%emt 0:00:00]} 11. dxe5 {[%emt 0:00:00]} dxe5 {[%emt 0:00:00]} 12. hxg6 {[%emt 0:00:00]} fxg6 {[%emt 0:00:00]} 13. Nf3 {[%emt 0:00:00]} Qc7 {[%emt 0:00:00]} 14. Qh6+ {[%emt 0:00:00]} Kg8 {[%emt 0:00:00]} 15. Ng5 {[%emt 0:00:00]} a6 {[%emt 0:00:00]} 16. Be2 {[%emt 0:00:00]} Ra7 {[%emt 0:00:00]} 17. Rd2 {[%emt 0:00:00]} Qe7 {[%emt 0:00:00]} 18. Rhd1 {[%emt 0:00:00]} Rd7 {[%emt 0:00:00]} 19. a3 {[%emt 0:00:00]} Rfd8 {[%emt 0:00:00]} 20. Bd3 {[%emt 0:00:00]} Rb7 {[%emt 0:00:00]} 21. Bc4+ {[%emt 0:00:00]} Nd5 {[%emt 0:00:00]} 22. Nxd5 {[%emt 0:00:00]} cxd5 {[%emt 0:00:00]} 23. Bxd5+ {[%emt 0:00:00]} Rxd5 {[%emt 0:00:00]} 24. Rxd5 {[%emt 0:00:00]} Nc6 {[%emt 0:00:00]} 25. Nxh7 {[%emt 0:10:30]} 1-0

[Event "26th OIBM 2023"]
[Site "Gmund am Tegernsee"]
[Date "2023.10.30"]
[Round "3.20"]
[White "Jacob, Tobias"]
[Black "Weber, Ulrich"]
[Result "1/2-1/2"]
[ECO "E94"]
[WhiteElo "1980"]
[BlackElo "2349"]
[Annotator "RC"]
[PlyCount "91"]
[EventDate "2023.10.04"]
[EventType "swiss"]
[EventCountry "GER"]
[SourceTitle "playchess.com"]
[Source "ChessBase"]
[SourceQuality "1"]
[TimeControl "40/5400+30:1800+30"]

1. d4 {[%emt 0:00:04]} Nf6 {[%emt 0:02:17]} 2. Nf3 {[%emt 0:00:33]} g6 {[%emt 0:00:19]} 3. c4 {[%emt 0:00:18]} Bg7 {[%emt 0:01:18]} 4. Nc3 {[%emt 0:00:17]} O-O {[%emt 0:00:33]} 5. e4 {[%emt 0:00:36]} d6 {[%emt 0:00:05]} 6. Be2 {[%emt 0:00:14]} Na6 {[%emt 0:00:24]} 7. O-O {[%emt 0:01:26]} e5 {[%emt 0:01:17]} 8. Be3 {[%emt 0:00:48]} Ng4 {[%emt 0:06:06]} 9. Bg5 {[%emt 0:01:20]} f6 {[%emt 0:00:07]} 10. Bc1 {[%emt 0:01:27]} f5 {[%emt 0:21:24]} 11. exf5 {[%emt 0:06:28]} gxf5 {[%emt 0:01:42]} 12. dxe5 {[%emt 0:14:16]} Nxe5 {[%emt 0:03:27]} 13. Nxe5 {[%emt 0:01:56]} Bxe5 {[%emt 0:03:32]} 14. Be3 {[%emt 0:04:05]} Kh8 {[%emt 0:07:37]} 15. f4 {[%emt 0:03:51]} Bg7 {[%emt 0:01:21]} 16. Bd4 {[%emt 0:00:17]} Be6 {[%emt 0:09:14]} 17. Bxg7+ {[%emt 0:09:37]} Kxg7 {[%emt 0:00:02]} 18. Nd5 {[%emt 0:00:32]} Bxd5 {[%emt 0:04:11]} 19. Qxd5 {[%emt 0:01:01]} c6 {[%emt 0:12:00]} 20. Qd4+ {[%emt 0:06:20]} Qf6 {[%emt 0:01:29]} 21. Rad1 {[%emt 0:00:42]} Qxd4+ {[%emt 0:08:49]} 22. Rxd4 {[%emt 0:00:33]} Rf6 {[%emt 0:00:14]} 23. Rfd1 {[%emt 0:01:52]} Re8 {[%emt 0:00:42]} 24. Bf3 {[%emt 0:04:41]} Rd8 {[%emt 0:04:04]} 25. a3 {[%emt 0:03:09]} c5 {[%emt 0:06:13]} 26. R4d3 {[%emt 0:04:05]} b6 {[%emt 0:00:44]} 27. Re1 {[%emt 0:02:52]} Nc7 {[%emt 0:02:27]} 28. Rde3 {[%emt 0:01:50]} Kf8 {[%emt 0:00:08]} 29. Bh5 {[%emt 0:12:56]} Rd7 {[%emt 0:00:09]} 30. Bf3 {[%emt 0:04:20]} Rff7 {[%emt 0:00:24]} 31. Rd1 {[%emt 0:03:22]} Rfe7 {[%emt 0:00:53]} 32. Red3 {[%emt 0:01:05]} Ne6 {[%emt 0:00:56]} 33. Rxd6 {[%emt 0:04:22]} Rxd6 {[%emt 0:00:17]} 34. Rxd6 {[%emt 0:00:06]} Nxf4 {[%emt 0:00:07]} 35. g3 {[%emt 0:02:46]} Ne6 {[%emt 0:00:21]} 36. Kf2 {[%emt 0:00:33]} Nd4 {[%emt 0:01:40]} 37. Bh5 {[%emt 0:01:05]} Kg7 {[%emt 0:00:36]} 38. b4 {[%emt 0:01:12]} Rc7 {[%emt 0:01:06]} 39. bxc5 {[%emt 0:00:33]} bxc5 {[%emt 0:00:01]} 40. Bf3 {[%emt 0:01:14]} Kf7 {[%emt 0:00:53]} 41. Bd5+ {[%emt 0:30:45]} Kg7 {[%emt 0:31:03]} 42. Ra6 {[%emt 0:00:00]} Re7 {[%emt 0:00:00]} 43. Ra5 {[%emt 0:00:00]} Rc7 {[%emt 0:00:00]} 44. Ra6 {[%emt 0:00:00]} Re7 {[%emt 0:00:00]} 45. Kg2 {[%emt 0:00:00]} Nc2 {[%emt 0:00:00]} 46. Kf2 {[%emt 0:00:00]} 1/2-1/2

[Event "26th OIBM 2023"]
[Site "Gmund am Tegernsee"]
[Date "2023.10.30"]
[Round "3.21"]
[White "Martin Fernandez, Rodrigo"]
[Black "Lipinsky, Markus"]
[Result "1-0"]
[ECO "B66"]
[WhiteElo "2092"]
[BlackElo "1928"]
[Annotator "NA RC"]
[PlyCount "49"]
[EventDate "2023.10.04"]
[EventType "swiss"]
[EventCountry "GER"]
[SourceTitle "playchess.com"]
[Source "ChessBase"]
[SourceQuality "1"]
[TimeControl "40/5400+30:1800+30"]

1. e4 {[%emt 0:01:35]} c5 {[%emt 0:00:10]} 2. Nf3 {[%emt 0:00:18]} Nc6 {[%emt 0:03:21]} 3. d4 {[%emt 0:00:06]} cxd4 {[%emt 0:00:04]} 4. Nxd4 {[%emt 0:00:05]} Nf6 {[%emt 0:00:17]} 5. Nc3 {[%emt 0:00:14]} d6 {[%emt 0:00:11]} 6. Bg5 {[%emt 0:00:56]} e6 {[%emt 0:00:51]} 7. Qd2 {[%emt 0:05:43]} Be7 {[%emt 0:00:21]} 8. O-O-O {[%emt 0:00:21]} Nxd4 {[%emt 0:00:07]} 9. Qxd4 {[%emt 0:00:21]} a6 {[%emt 0:00:02]} 10. Bc4 {[%emt 0:06:50]} b5 {[%emt 0:01:49]} 11. Bb3 {[%emt 0:03:15]} Bb7 {[%emt 0:00:15]} 12. f3 {[%emt 0:01:21]} Rc8 {[%emt 0:06:07]} 13. h4 {[%emt 0:00:46]} Qc7 {[%emt 0:01:46]} 14. Kb1 {[%emt 0:11:57]} h6 {[%emt 0:03:08]} 15. Be3 {[%emt 0:02:57]} Rg8 {[%emt 0:29:33]} 16. g4 {[%emt 0:09:36]} Nd7 {[%emt 0:01:59]} 17. g5 {[%emt 0:02:21]} hxg5 {[%emt 0:01:19]} 18. hxg5 {[%emt 0:02:09]} Nc5 {[%emt 0:00:57]} 19. Rhe1 {[%emt 0:07:59]} Nxb3 {[%emt 0:12:49]} 20. cxb3 {[%emt 0:00:15]} f5 {[%emt 0:11:21]} 21. exf5 {[%emt 0:04:49]} Bxf3 {[%emt 0:01:56]} 22. fxe6 {[%emt 0:06:08]} Bxd1 {[%emt 0:00:02]} 23. Qxd1 {[%emt 0:01:30]} Rh8 {[%emt 0:07:32]} 24. Nd5 {[%emt 0:05:05]} Qc6 {[%emt 0:00:42]} 25. Qd3 {[%emt 0:01:05]} 1-0

[Event "26th OIBM 2023"]
[Site "Gmund am Tegernsee"]
[Date "2023.10.30"]
[Round "3.22"]
[White "Staudacher, Thomas"]
[Black "Restorff, Felix"]
[Result "0-1"]
[ECO "B12"]
[WhiteElo "1927"]
[BlackElo "2087"]
[Annotator "NA RC"]
[PlyCount "68"]
[EventDate "2023.10.04"]
[EventType "swiss"]
[EventCountry "GER"]
[SourceTitle "playchess.com"]
[Source "ChessBase"]
[SourceQuality "1"]
[TimeControl "40/5400+30:1800+30"]

1. e4 {[%emt 0:03:56]} c6 {[%emt 0:00:16]} 2. d4 {[%emt 0:00:16]} d5 {[%emt 0:00:11]} 3. e5 {[%emt 0:00:09]} c5 {[%emt 0:00:17]} 4. dxc5 {[%emt 0:00:13]} e6 {[%emt 0:00:32]} 5. Nf3 {[%emt 0:00:12]} Bxc5 {[%emt 0:00:44]} 6. Bd3 {[%emt 0:00:20]} f6 {[%emt 0:01:10]} 7. O-O {[%emt 0:03:19]} fxe5 {[%emt 0:01:12]} 8. Nxe5 {[%emt 0:00:18]} Nf6 {[%emt 0:00:11]} 9. Bg5 {[%emt 0:03:58]} O-O {[%emt 0:02:24]} 10. Nd2 {[%emt 0:10:26]} Nc6 {[%emt 0:04:38]} 11. Nxc6 {[%emt 0:16:58]} bxc6 {[%emt 0:00:17]} 12. Qe2 {[%emt 0:01:36]} Qc7 {[%emt 0:04:28]} 13. Nf3 {[%emt 0:07:55]} Ng4 {[%emt 0:06:54]} 14. h3 {[%emt 0:10:25]} Rxf3 {[%emt 0:12:51]} 15. hxg4 {[%emt 0:00:16]} Rf7 {[%emt 0:04:52]} 16. c4 {[%emt 0:13:02]} Qd6 {[%emt 0:21:13]} 17. Qc2 {[%emt 0:06:10]} g6 {[%emt 0:01:44]} 18. Rac1 {[%emt 0:05:41]} Bd4 {[%emt 0:02:44]} 19. Bh6 {[%emt 0:02:02]} Bd7 {[%emt 0:02:44]} 20. Rcd1 {[%emt 0:02:38]} e5 {[%emt 0:02:19]} 21. Be2 {[%emt 0:01:19]} Rb8 {[%emt 0:03:22]} 22. b3 {[%emt 0:00:20]} Qc5 {[%emt 0:00:53]} 23. Kh1 {[%emt 0:05:15]} Bxf2 {[%emt 0:05:40]} 24. Qd2 {[%emt 0:01:40]} Be6 {[%emt 0:04:57]} 25. Bd3 {[%emt 0:02:06]} e4 {[%emt 0:06:28]} 26. cxd5 {[%emt 0:00:56]} cxd5 {[%emt 0:02:24]} 27. Be2 {[%emt 0:01:55]} e3 {[%emt 0:01:21]} 28. Qd3 {[%emt 0:00:25]} Qe7 {[%emt 0:02:35]} 29. g5 {[%emt 0:00:33]} Qd6 {[%emt 0:01:16]} 30. Qd4 {[%emt 0:00:38]} Rb4 {[%emt 0:02:01]} 31. Bc4 {[%emt 0:00:04]} e2 {[%emt 0:01:01]} 32. Rxf2 {[%emt 0:00:58]} exd1=Q+ {[%emt 0:00:39]} 33. Qxd1 {[%emt 0:00:10]} Rxf2 {[%emt 0:00:29]} 34. Qe1 {[%emt 0:00:46]} Rf7 {[%emt 0:00:34]} 0-1

[Event "26th OIBM 2023"]
[Site "Gmund am Tegernsee"]
[Date "2023.10.30"]
[Round "3.23"]
[White "Tillmann, Markus"]
[Black "Heppert, Lars"]
[Result "1-0"]
[ECO "D31"]
[WhiteElo "2085"]
[BlackElo "1924"]
[Annotator "NA RC"]
[PlyCount "93"]
[EventDate "2023.10.04"]
[EventType "swiss"]
[EventCountry "GER"]
[SourceTitle "playchess.com"]
[Source "ChessBase"]
[SourceQuality "1"]
[TimeControl "40/5400+30:1800+30"]

1. d4 {[%emt 0:04:46]} d5 {[%emt 0:00:18]} 2. c4 {[%emt 0:00:09]} e6 {[%emt 0:00:29]} 3. Nc3 {[%emt 0:00:05]} c6 {[%emt 0:00:12]} 4. e4 {[%emt 0:02:23]} dxe4 {[%emt 0:04:18]} 5. Nxe4 {[%emt 0:00:06]} Nf6 {[%emt 0:00:40]} 6. Nxf6+ {[%emt 0:02:01]} Qxf6 {[%emt 0:00:35]} 7. Nf3 {[%emt 0:00:11]} Bb4+ {[%emt 0:00:51]} 8. Bd2 {[%emt 0:00:09]} Qe7 {[%emt 0:02:14]} 9. Bd3 {[%emt 0:01:07]} O-O {[%emt 0:06:03]} 10. O-O {[%emt 0:00:33]} Bxd2 {[%emt 0:00:25]} 11. Qxd2 {[%emt 0:00:20]} Rd8 {[%emt 0:02:33]} 12. Rad1 {[%emt 0:00:45]} c5 {[%emt 0:03:08]} 13. dxc5 {[%emt 0:01:53]} g6 {[%emt 0:01:25]} 14. Qh6 {[%emt 0:11:39]} Nd7 {[%emt 0:01:01]} 15. b4 {[%emt 0:02:11]} a5 {[%emt 0:01:14]} 16. a3 {[%emt 0:00:29]} axb4 {[%emt 0:00:48]} 17. axb4 {[%emt 0:00:08]} Nf8 {[%emt 0:02:12]} 18. Bc2 {[%emt 0:05:33]} Bd7 {[%emt 0:01:37]} 19. h3 {[%emt 0:03:13]} Ra3 {[%emt 0:04:54]} 20. Be4 {[%emt 0:03:24]} Bc6 {[%emt 0:01:28]} 21. Bxc6 {[%emt 0:00:38]} bxc6 {[%emt 0:00:01]} 22. Ne5 {[%emt 0:01:29]} Rc8 {[%emt 0:06:56]} 23. Rd6 {[%emt 0:00:36]} Qb7 {[%emt 0:00:41]} 24. Qf4 {[%emt 0:09:42]} Ra7 {[%emt 0:09:24]} 25. Qf6 {[%emt 0:03:52]} Qa8 {[%emt 0:08:13]} 26. Ng4 {[%emt 0:00:28]} h5 {[%emt 0:04:09]} 27. Nh6+ {[%emt 0:01:33]} Kh7 {[%emt 0:01:02]} 28. Nxf7 {[%emt 0:00:07]} Kg8 {[%emt 0:01:54]} 29. Ng5 {[%emt 0:02:49]} Re8 {[%emt 0:02:02]} 30. Rfd1 {[%emt 0:00:26]} Rae7 {[%emt 0:00:47]} 31. Qc3 {[%emt 0:08:34]} e5 {[%emt 0:00:49]} 32. Ne4 {[%emt 0:00:21]} Kg7 {[%emt 0:02:10]} 33. Nf6 {[%emt 0:03:43]} Rb8 {[%emt 0:00:28]} 34. Nd7 {[%emt 0:01:56]} Rbe8 {[%emt 0:01:50]} 35. Nxe5 {[%emt 0:06:09]} Kh7 {[%emt 0:00:39]} 36. f4 {[%emt 0:01:32]} Ne6 {[%emt 0:01:02]} 37. Qg3 {[%emt 0:04:34]} Rg8 {[%emt 0:19:54]} 38. Qh4 {[%emt 0:04:39]} Qe8 {[%emt 0:01:09]} 39. Nd7 {[%emt 0:03:05]} Qf7 {[%emt 0:02:28]} 40. Nf6+ {[%emt 0:00:24]} Kg7 {[%emt 0:00:01]} 41. Nxg8 {[%emt 0:30:20]} Kxg8 {[%emt 0:30:13]} 42. Rxc6 {[%emt 0:11:42]} Nxf4 {[%emt 0:01:32]} 43. Rc8+ {[%emt 0:01:23]} Kh7 {[%emt 0:01:25]} 44. Rdd8 {[%emt 0:00:33]} Re4 {[%emt 0:00:00]} 45. Rh8+ {[%emt 0:00:00]} Kg7 {[%emt 0:00:00]} 46. Kh2 {[%emt 0:00:00]} Qxc4 {[%emt 0:00:00]} 47. Qd8 {[%emt 0:00:00]} 1-0

[Event "26th OIBM 2023"]
[Site "Gmund am Tegernsee"]
[Date "2023.10.30"]
[Round "3.24"]
[White "Kraus, Sebastian"]
[Black "Schulz, Michael"]
[Result "1-0"]
[ECO "B22"]
[WhiteElo "1904"]
[BlackElo "2221"]
[Annotator "RC"]
[PlyCount "59"]
[EventDate "2023.10.04"]
[EventType "swiss"]
[EventCountry "GER"]
[SourceTitle "playchess.com"]
[Source "ChessBase"]
[SourceQuality "1"]
[TimeControl "40/5400+30:1800+30"]

1. e4 {[%emt 0:00:04]} c5 {[%emt 0:00:19]} 2. c3 {[%emt 0:00:24]} d5 {[%emt 0:00:06]} 3. exd5 {[%emt 0:00:18]} Qxd5 {[%emt 0:00:07]} 4. d4 {[%emt 0:00:15]} Nf6 {[%emt 0:00:22]} 5. Nf3 {[%emt 0:00:24]} Bg4 {[%emt 0:00:06]} 6. dxc5 {[%emt 0:00:47]} Qxc5 {[%emt 0:03:20]} 7. Be3 {[%emt 0:00:47]} Qc7 {[%emt 0:01:52]} 8. Na3 {[%emt 0:02:48]} Nc6 {[%emt 0:04:31]} 9. Nb5 {[%emt 0:03:27]} Qb8 {[%emt 0:00:09]} 10. h3 {[%emt 0:01:12]} Bh5 {[%emt 0:02:43]} 11. Nbd4 {[%emt 0:07:12]} e5 {[%emt 0:10:13]} 12. Nxc6 {[%emt 0:01:12]} bxc6 {[%emt 0:00:07]} 13. Qa4 {[%emt 0:00:38]} Bxf3 {[%emt 0:02:06]} 14. gxf3 {[%emt 0:00:11]} Qc7 {[%emt 0:01:57]} 15. f4 {[%emt 0:05:45]} Bd6 {[%emt 0:02:44]} 16. fxe5 {[%emt 0:04:38]} Bxe5 {[%emt 0:00:36]} 17. Bg2 {[%emt 0:00:27]} O-O {[%emt 0:01:20]} 18. Qxc6 {[%emt 0:01:36]} Qxc6 {[%emt 0:02:30]} 19. Bxc6 {[%emt 0:00:09]} Rab8 {[%emt 0:00:37]} 20. O-O-O {[%emt 0:03:51]} a6 {[%emt 0:09:00]} 21. Kc2 {[%emt 0:10:09]} Nh5 {[%emt 0:01:29]} 22. Rd5 {[%emt 0:10:13]} f6 {[%emt 0:01:54]} 23. Rg1 {[%emt 0:10:07]} Rfd8 {[%emt 0:09:07]} 24. Rg4 {[%emt 0:01:15]} Kf8 {[%emt 0:04:36]} 25. Rxd8+ {[%emt 0:04:11]} Rxd8 {[%emt 0:00:02]} 26. Ra4 {[%emt 0:00:10]} g5 {[%emt 0:01:42]} 27. h4 {[%emt 0:05:47]} Nf4 {[%emt 0:04:18]} 28. hxg5 {[%emt 0:00:35]} fxg5 {[%emt 0:00:03]} 29. Ra5 {[%emt 0:03:17]} Bb8 {[%emt 0:05:40]} 30. Rxg5 {[%emt 0:02:55]} 1-0